[Event "Titled Tuesday Blitz September 27 Early 2022"]
[White "Sadilek, Peter"]
[Black "Aloma Vidal, Robert"]
[WhiteFideId "1616439"]
[BlackFideId "2260409"]
[WhiteElo "2145"]
[BlackElo "2435"]
[Result "0-1"]
[Round "04"]
[TimeControl "180+1"]
[Date "2022.09.27"]
[WhiteClock "0:00:03"]
[BlackClock "0:01:45"]

1. d4 {[%clk 0:03:00]}  d5 {[%clk 0:02:53]} 2. c4 {[%clk 0:02:59]}  c6 {[%clk 0:02:53]} 3. Nf3 {[%clk 0:03:00]}  Nf6 {[%clk 0:02:53]} 4. Nc3 {[%clk 0:03:01]}  e6 {[%clk 0:02:53]} 5. g3 {[%clk 0:03:00]}  Nbd7 {[%clk 0:02:51]} 6. Bg2 {[%clk 0:03:01]}  dxc4 {[%clk 0:02:51]} 7. O-O {[%clk 0:03:01]}  Bd6 {[%clk 0:02:49]} 8. Nd2 {[%clk 0:03:00]}  Nb6 {[%clk 0:02:44]} 9. e4 {[%clk 0:02:42]}  e5 {[%clk 0:02:42]} 10. Nf3 {[%clk 0:02:24]}  exd4 {[%clk 0:02:30]} 11. Qxd4 {[%clk 0:01:50]}  Be7 {[%clk 0:02:28]} 12. Qxd8+ {[%clk 0:01:33]}  Bxd8 {[%clk 0:02:27]} 13. e5 {[%clk 0:01:23]}  Nfd5 {[%clk 0:02:27]} 14. Ne4 {[%clk 0:01:23]}  O-O {[%clk 0:02:24]} 15. Nd6 {[%clk 0:01:23]}  Be7 {[%clk 0:02:22]} 16. Nd4 {[%clk 0:01:04]}  Bxd6 {[%clk 0:02:17]} 17. exd6 {[%clk 0:01:05]}  Rd8 {[%clk 0:02:17]} 18. Re1 {[%clk 0:00:58]}  Bg4 {[%clk 0:02:16]} 19. h3 {[%clk 0:00:54]}  Bh5 {[%clk 0:02:16]} 20. Nf5 {[%clk 0:00:39]}  Bg6 {[%clk 0:02:16]} 21. Ne7+ {[%clk 0:00:37]}  Kf8 {[%clk 0:02:11]} 22. a4 {[%clk 0:00:31]}  a5 {[%clk 0:02:02]} 23. Nxd5 {[%clk 0:00:26]}  Nxd5 {[%clk 0:02:00]} 24. Bxd5 {[%clk 0:00:26]}  cxd5 {[%clk 0:02:00]} 25. Be3 {[%clk 0:00:19]}  Rac8 {[%clk 0:01:57]} 26. Rad1 {[%clk 0:00:07]}  Rxd6 {[%clk 0:01:50]} 27. Bf4 {[%clk 0:00:04]}  Rd7 {[%clk 0:01:49]} 28. Be5 {[%clk 0:00:04]}  Bc2 {[%clk 0:01:47]} 29. Ra1 {[%clk 0:00:03]}  d4 {[%clk 0:01:45]} 0-1


[Site "https://www.chess.com"]

[Event "Titled Tuesday Blitz September 27 Early 2022"]
[White "Sailer, Mike"]
[Black "Flis, Pawel"]
[WhiteFideId "2012901"]
[BlackFideId "1112864"]
[WhiteElo "2109"]
[BlackElo "1735"]
[Result "1-0"]
[Round "04"]
[TimeControl "180+1"]
[Date "2022.09.27"]
[WhiteClock "0:00:33"]
[BlackClock "0:01:18"]

1. d4 {[%clk 0:03:00]}  c5 {[%clk 0:02:59]} 2. d5 {[%clk 0:02:59]}  Nf6 {[%clk 0:02:59]} 3. Nc3 {[%clk 0:02:59]}  e6 {[%clk 0:02:56]} 4. e4 {[%clk 0:02:59]}  d6 {[%clk 0:02:55]} 5. Nf3 {[%clk 0:02:56]}  exd5 {[%clk 0:02:55]} 6. exd5 {[%clk 0:02:55]}  Be7 {[%clk 0:02:55]} 7. h3 {[%clk 0:02:46]}  O-O {[%clk 0:02:52]} 8. Bd3 {[%clk 0:02:46]}  Na6 {[%clk 0:02:50]} 9. a3 {[%clk 0:02:43]}  Nc7 {[%clk 0:02:50]} 10. O-O {[%clk 0:02:43]}  Rb8 {[%clk 0:02:39]} 11. a4 {[%clk 0:02:29]}  h6 {[%clk 0:02:37]} 12. Re1 {[%clk 0:02:27]}  Nfxd5 {[%clk 0:02:29]} 13. Nxd5 {[%clk 0:02:08]}  Nxd5 {[%clk 0:02:30]} 14. c3 {[%clk 0:01:58]}  Nf6 {[%clk 0:02:24]} 15. Bc2 {[%clk 0:01:46]}  Be6 {[%clk 0:02:23]} 16. Bf4 {[%clk 0:01:45]}  Rc8 {[%clk 0:02:10]} 17. Qd3 {[%clk 0:01:43]}  c4 {[%clk 0:02:01]} 18. Qd2 {[%clk 0:01:27]}  Qd7 {[%clk 0:01:49]} 19. Rad1 {[%clk 0:01:25]}  Bf5 {[%clk 0:01:46]} 20. g4 {[%clk 0:01:01]}  Be6 {[%clk 0:01:41]} 21. Qe3 {[%clk 0:00:40]}  b6 {[%clk 0:01:30]} 22. Nd4 {[%clk 0:00:34]}  Nd5 {[%clk 0:01:19]} 23. Qe4 {[%clk 0:00:34]}  Nxf4 {[%clk 0:01:18]} 24. Qh7# {[%clk 0:00:33]} 1-0


[Site "https://www.chess.com"]

[Event "Titled Tuesday Blitz September 27 Early 2022"]
[White "Sanchez, Robert"]
[Black "Fiorito, Francisco"]
[WhiteFideId "2034360"]
[BlackFideId "180165"]
[WhiteElo "2396"]
[BlackElo "1787"]
[Result "0-1"]
[Round "04"]
[TimeControl "180+1"]
[Date "2022.09.27"]
[WhiteClock "0:00:03"]
[BlackClock "0:00:07"]

1. e4 {[%clk 0:03:00]}  c5 {[%clk 0:02:59]} 2. Nf3 {[%clk 0:03:01]}  Nc6 {[%clk 0:02:59]} 3. d4 {[%clk 0:03:01]}  cxd4 {[%clk 0:03:00]} 4. Nxd4 {[%clk 0:03:02]}  g6 {[%clk 0:03:01]} 5. c4 {[%clk 0:03:01]}  Nf6 {[%clk 0:03:01]} 6. Nc3 {[%clk 0:03:00]}  d6 {[%clk 0:03:01]} 7. Nc2 {[%clk 0:03:00]}  Bg7 {[%clk 0:03:01]} 8. Be2 {[%clk 0:02:58]}  O-O {[%clk 0:03:01]} 9. O-O {[%clk 0:02:59]}  Be6 {[%clk 0:03:00]} 10. Rb1 {[%clk 0:02:52]}  Rc8 {[%clk 0:02:57]} 11. b3 {[%clk 0:02:44]}  a6 {[%clk 0:02:57]} 12. f3 {[%clk 0:02:42]}  Qa5 {[%clk 0:02:15]} 13. Bd2 {[%clk 0:02:26]}  Qb6+ {[%clk 0:01:26]} 14. Be3 {[%clk 0:02:20]}  Qc7 {[%clk 0:01:27]} 15. Nd5 {[%clk 0:02:05]}  Bxd5 {[%clk 0:01:26]} 16. cxd5 {[%clk 0:01:58]}  Ne5 {[%clk 0:01:23]} 17. Rc1 {[%clk 0:01:49]}  Qa5 {[%clk 0:01:20]} 18. a3 {[%clk 0:01:18]}  Ned7 {[%clk 0:00:58]} 19. b4 {[%clk 0:01:13]}  Qa4 {[%clk 0:00:51]} 20. Qd3 {[%clk 0:01:08]}  Ne5 {[%clk 0:00:50]} 21. Qd2 {[%clk 0:01:04]}  Nc4 {[%clk 0:00:45]} 22. Bxc4 {[%clk 0:01:03]}  Rxc4 {[%clk 0:00:46]} 23. Qd3 {[%clk 0:00:59]}  Rfc8 {[%clk 0:00:45]} 24. Nd4 {[%clk 0:00:59]}  Rxc1 {[%clk 0:00:37]} 25. Rxc1 {[%clk 0:01:00]}  Rxc1+ {[%clk 0:00:36]} 26. Bxc1 {[%clk 0:01:00]}  Nd7 {[%clk 0:00:35]} 27. Be3 {[%clk 0:00:57]}  h5 {[%clk 0:00:33]} 28. h4 {[%clk 0:00:50]}  Ne5 {[%clk 0:00:33]} 29. Qc3 {[%clk 0:00:49]}  Qd1+ {[%clk 0:00:33]} 30. Kh2 {[%clk 0:00:48]}  Bf6 {[%clk 0:00:23]} 31. Qc8+ {[%clk 0:00:24]}  Kg7 {[%clk 0:00:23]} 32. Qxb7 {[%clk 0:00:23]}  Bxh4 {[%clk 0:00:20]} 33. Qxa6 {[%clk 0:00:22]}  Qe1 {[%clk 0:00:19]} 34. Qe2 {[%clk 0:00:18]}  Qa1 {[%clk 0:00:13]} 35. b5 {[%clk 0:00:11]}  Qxa3 {[%clk 0:00:13]} 36. Nc6 {[%clk 0:00:11]}  Nd7 {[%clk 0:00:11]} 37. Bd4+ {[%clk 0:00:10]}  Bf6 {[%clk 0:00:10]} 38. Bxf6+ {[%clk 0:00:09]}  exf6 {[%clk 0:00:11]} 39. Qf2 {[%clk 0:00:07]}  Qb3 {[%clk 0:00:10]} 40. Qe2 {[%clk 0:00:08]}  Nc5 {[%clk 0:00:09]} 41. Nd4 {[%clk 0:00:07]}  Qb1 {[%clk 0:00:09]} 42. Nc6 {[%clk 0:00:06]}  h4 {[%clk 0:00:08]} 43. Kh3 {[%clk 0:00:06]}  Qh1+ {[%clk 0:00:08]} 44. Kg4 {[%clk 0:00:06]}  Nd7 {[%clk 0:00:07]} 45. b6 {[%clk 0:00:05]}  Ne5+ {[%clk 0:00:07]} 46. Kf4 {[%clk 0:00:05]}  Qc1+ {[%clk 0:00:07]} 47. Qe3 {[%clk 0:00:03]}  g5+ {[%clk 0:00:07]} 0-1


[Site "https://www.chess.com"]

[Event "Titled Tuesday Blitz September 27 Early 2022"]
[White "Schekachikhin, Maksim"]
[Black "Ferreira, Vitor Hugo Vieira"]
[WhiteFideId "24177830"]
[BlackFideId "2119765"]
[WhiteElo "2226"]
[BlackElo "2168"]
[Result "0-1"]
[Round "04"]
[TimeControl "180+1"]
[Date "2022.09.27"]
[WhiteClock "0:01:26"]
[BlackClock "0:01:57"]

1. g3 {[%clk 0:03:00]}  Nf6 {[%clk 0:02:59]} 2. Bg2 {[%clk 0:02:50]}  d5 {[%clk 0:02:59]} 3. Nf3 {[%clk 0:02:47]}  Bg4 {[%clk 0:02:57]} 4. O-O {[%clk 0:02:46]}  Nbd7 {[%clk 0:02:56]} 5. c4 {[%clk 0:02:46]}  e6 {[%clk 0:02:55]} 6. b3 {[%clk 0:02:44]}  Be7 {[%clk 0:02:53]} 7. Bb2 {[%clk 0:02:44]}  O-O {[%clk 0:02:53]} 8. d3 {[%clk 0:02:44]}  c6 {[%clk 0:02:45]} 9. Nbd2 {[%clk 0:02:42]}  Nc5 {[%clk 0:02:44]} 10. Rc1 {[%clk 0:02:41]}  Qa5 {[%clk 0:02:36]} 11. Rc2 {[%clk 0:02:39]}  Rac8 {[%clk 0:02:31]} 12. Qa1 {[%clk 0:02:39]}  Na6 {[%clk 0:02:28]} 13. a3 {[%clk 0:02:37]}  c5 {[%clk 0:02:22]} 14. h3 {[%clk 0:02:35]}  Bf5 {[%clk 0:02:21]} 15. Ne5 {[%clk 0:02:32]}  h6 {[%clk 0:02:16]} 16. g4 {[%clk 0:01:53]}  Bh7 {[%clk 0:02:15]} 17. f4 {[%clk 0:01:54]}  Qc7 {[%clk 0:02:10]} 18. g5 {[%clk 0:01:52]}  hxg5 {[%clk 0:02:09]} 19. fxg5 {[%clk 0:01:53]}  Ne8 {[%clk 0:02:08]} 20. Ndf3 {[%clk 0:01:45]}  d4 {[%clk 0:02:03]} 21. Qe1 {[%clk 0:01:35]}  Nd6 {[%clk 0:02:02]} 22. Bc1 {[%clk 0:01:33]}  Nf5 {[%clk 0:02:00]} 23. Bf4 {[%clk 0:01:29]}  Bd6 {[%clk 0:01:59]} 24. h4 {[%clk 0:01:27]}  f6 {[%clk 0:01:57]} 25. gxf6 {[%clk 0:01:26]}  gxf6 {[%clk 0:01:57]} 0-1


[Site "https://www.chess.com"]

[Event "Titled Tuesday Blitz September 27 Early 2022"]
[White "Seemann, Jakub"]
[Black "Bilych, Olexiy"]
[WhiteFideId "21874697"]
[BlackFideId "14156504"]
[WhiteElo "2148"]
[BlackElo "2157"]
[Result "0-1"]
[Round "04"]
[TimeControl "180+1"]
[Date "2022.09.27"]
[WhiteClock "0:00:05"]
[BlackClock "0:00:14"]

1. d4 {[%clk 0:03:00]}  Nf6 {[%clk 0:02:59]} 2. c4 {[%clk 0:03:01]}  e6 {[%clk 0:02:59]} 3. Nf3 {[%clk 0:03:01]}  d5 {[%clk 0:02:59]} 4. g3 {[%clk 0:03:02]}  dxc4 {[%clk 0:02:57]} 5. Bg2 {[%clk 0:03:02]}  Bb4+ {[%clk 0:02:58]} 6. Bd2 {[%clk 0:02:59]}  a5 {[%clk 0:02:57]} 7. Qc2 {[%clk 0:02:57]}  b5 {[%clk 0:02:52]} 8. O-O {[%clk 0:02:56]}  Bxd2 {[%clk 0:02:49]} 9. Nbxd2 {[%clk 0:02:55]}  O-O {[%clk 0:02:47]} 10. a4 {[%clk 0:02:54]}  c6 {[%clk 0:02:47]} 11. b3 {[%clk 0:02:54]}  cxb3 {[%clk 0:02:36]} 12. Nxb3 {[%clk 0:02:55]}  Ba6 {[%clk 0:02:18]} 13. Nc5 {[%clk 0:02:52]}  bxa4 {[%clk 0:01:47]} 14. Rfd1 {[%clk 0:02:41]}  Bb5 {[%clk 0:01:46]} 15. Ne5 {[%clk 0:02:41]}  Nd5 {[%clk 0:01:44]} 16. Be4 {[%clk 0:02:40]}  g6 {[%clk 0:01:35]} 17. h4 {[%clk 0:02:26]}  Na6 {[%clk 0:01:17]} 18. Bxg6 {[%clk 0:01:33]}  hxg6 {[%clk 0:01:10]} 19. Nxe6 {[%clk 0:01:33]}  Nab4 {[%clk 0:00:58]} 20. Qb1 {[%clk 0:01:17]}  Qe7 {[%clk 0:00:51]} 21. Nxf8 {[%clk 0:01:15]}  Rxf8 {[%clk 0:00:47]} 22. Qb2 {[%clk 0:01:08]}  Re8 {[%clk 0:00:28]} 23. Rac1 {[%clk 0:01:04]}  f6 {[%clk 0:00:25]} 24. Nxg6 {[%clk 0:00:47]}  Qxe2 {[%clk 0:00:25]} 25. Qa3 {[%clk 0:00:45]}  Qg4 {[%clk 0:00:19]} 26. Re1 {[%clk 0:00:34]}  Rxe1+ {[%clk 0:00:18]} 27. Rxe1 {[%clk 0:00:35]}  Qxg6 {[%clk 0:00:19]} 28. Qf3 {[%clk 0:00:35]}  Kg7 {[%clk 0:00:18]} 29. h5 {[%clk 0:00:35]}  Qg5 {[%clk 0:00:18]} 30. Re8 {[%clk 0:00:32]}  Bd3 {[%clk 0:00:17]} 31. Ra8 {[%clk 0:00:25]}  a3 {[%clk 0:00:14]} 32. Rxa5 {[%clk 0:00:14]}  a2 {[%clk 0:00:14]} 33. Kh2 {[%clk 0:00:07]}  Qf5 {[%clk 0:00:14]} 34. Qd1 {[%clk 0:00:04]}  Qxf2+ {[%clk 0:00:13]} 35. Kh3 {[%clk 0:00:05]}  Bf5+ {[%clk 0:00:13]} 36. g4 {[%clk 0:00:05]}  Nf4# {[%clk 0:00:14]} 0-1


[Site "https://www.chess.com"]

[Event "Titled Tuesday Blitz September 27 Early 2022"]
[White "Sellitti, Federico"]
[Black "Burmakin, Vladimir"]
[WhiteFideId "821829"]
[BlackFideId "4105109"]
[WhiteElo "2517"]
[BlackElo "2513"]
[Result "1/2-1/2"]
[Round "04"]
[TimeControl "180+1"]
[Date "2022.09.27"]
[WhiteClock "0:00:04"]
[BlackClock "0:00:04"]

1. e4 {[%clk 0:03:00]}  c6 {[%clk 0:03:00]} 2. d4 {[%clk 0:03:00]}  d5 {[%clk 0:03:00]} 3. exd5 {[%clk 0:03:01]}  cxd5 {[%clk 0:02:59]} 4. Bd3 {[%clk 0:03:02]}  Nf6 {[%clk 0:02:59]} 5. c3 {[%clk 0:03:02]}  Qc7 {[%clk 0:02:59]} 6. Ne2 {[%clk 0:03:03]}  e6 {[%clk 0:02:58]} 7. Bf4 {[%clk 0:03:01]}  Bd6 {[%clk 0:02:58]} 8. Bxd6 {[%clk 0:03:02]}  Qxd6 {[%clk 0:02:58]} 9. O-O {[%clk 0:03:02]}  Nc6 {[%clk 0:02:57]} 10. Nd2 {[%clk 0:03:02]}  Rb8 {[%clk 0:02:56]} 11. Nf3 {[%clk 0:03:02]}  b5 {[%clk 0:02:55]} 12. Ng3 {[%clk 0:03:03]}  b4 {[%clk 0:02:47]} 13. Qe2 {[%clk 0:03:03]}  O-O {[%clk 0:02:47]} 14. Ne5 {[%clk 0:03:02]}  bxc3 {[%clk 0:02:45]} 15. bxc3 {[%clk 0:03:01]}  Ne7 {[%clk 0:02:45]} 16. f4 {[%clk 0:02:58]}  g6 {[%clk 0:02:41]} 17. h4 {[%clk 0:02:33]}  Nf5 {[%clk 0:02:40]} 18. Nxf5 {[%clk 0:02:27]}  exf5 {[%clk 0:02:38]} 19. Rab1 {[%clk 0:02:04]}  Be6 {[%clk 0:02:37]} 20. Qc2 {[%clk 0:01:37]}  Ne4 {[%clk 0:02:30]} 21. Bxe4 {[%clk 0:01:16]}  dxe4 {[%clk 0:02:29]} 22. Qa4 {[%clk 0:01:16]}  Rbc8 {[%clk 0:01:50]} 23. Rfd1 {[%clk 0:00:57]}  Rxc3 {[%clk 0:01:45]} 24. d5 {[%clk 0:00:53]}  Bc8 {[%clk 0:01:23]} 25. Qxa7 {[%clk 0:00:51]}  Qf6 {[%clk 0:01:13]} 26. d6 {[%clk 0:00:49]}  Qxh4 {[%clk 0:01:11]} 27. d7 {[%clk 0:00:49]}  Bxd7 {[%clk 0:01:10]} 28. Rxd7 {[%clk 0:00:26]}  Qxf4 {[%clk 0:00:36]} 29. Nxf7 {[%clk 0:00:26]}  Rfc8 {[%clk 0:00:23]} 30. Rbd1 {[%clk 0:00:13]}  Rc1 {[%clk 0:00:22]} 31. Qb6 {[%clk 0:00:12]}  Rxd1+ {[%clk 0:00:19]} 32. Rxd1 {[%clk 0:00:13]}  Qc7 {[%clk 0:00:10]} 33. Qxc7 {[%clk 0:00:13]}  Rxc7 {[%clk 0:00:10]} 34. Ne5 {[%clk 0:00:12]}  Rc2 {[%clk 0:00:09]} 35. a4 {[%clk 0:00:11]}  Ra2 {[%clk 0:00:08]} 36. g4 {[%clk 0:00:11]}  Rxa4 {[%clk 0:00:06]} 37. gxf5 {[%clk 0:00:12]}  gxf5 {[%clk 0:00:06]} 38. Rf1 {[%clk 0:00:12]}  Ra5 {[%clk 0:00:05]} 39. Rxf5 {[%clk 0:00:13]}  Kg7 {[%clk 0:00:05]} 40. Kf2 {[%clk 0:00:09]}  h5 {[%clk 0:00:05]} 41. Rxh5 {[%clk 0:00:06]}  Ra3 {[%clk 0:00:04]} 42. Nc4 {[%clk 0:00:03]}  Rc3 {[%clk 0:00:03]} 43. Ke2 {[%clk 0:00:01]}  e3 {[%clk 0:00:04]} 44. Re5 {[%clk 0:00:01]}  Rxc4 {[%clk 0:00:04]} 45. Rxe3 {[%clk 0:00:02]}  Rg4 {[%clk 0:00:04]} 46. Rf3 {[%clk 0:00:03]}  Rg6 {[%clk 0:00:04]} 47. Kf2 {[%clk 0:00:04]}  Rf6 {[%clk 0:00:04]} 48. Rxf6 {[%clk 0:00:04]}  Kxf6 {[%clk 0:00:04]} 1/2-1/2


[Site "https://www.chess.com"]

[Event "Titled Tuesday Blitz September 27 Early 2022"]
[White "Shandrygin, Nikita"]
[Black "Koziorowicz, Michal"]
[WhiteFideId "24198668"]
[BlackFideId "21809194"]
[WhiteElo "2323"]
[BlackElo "2220"]
[Result "0-1"]
[Round "04"]
[TimeControl "180+1"]
[Date "2022.09.27"]
[WhiteClock "0:00:01"]
[BlackClock "0:00:26"]

1. e4 {[%clk 0:03:00]}  c6 {[%clk 0:02:58]} 2. d4 {[%clk 0:03:00]}  d5 {[%clk 0:02:58]} 3. Nd2 {[%clk 0:03:01]}  dxe4 {[%clk 0:02:50]} 4. Nxe4 {[%clk 0:03:02]}  Nd7 {[%clk 0:02:51]} 5. Ng5 {[%clk 0:03:02]}  e6 {[%clk 0:02:41]} 6. Bc4 {[%clk 0:02:47]}  Nb6 {[%clk 0:02:29]} 7. Bb3 {[%clk 0:02:45]}  Be7 {[%clk 0:02:29]} 8. N5f3 {[%clk 0:02:41]}  Nf6 {[%clk 0:02:29]} 9. Ne5 {[%clk 0:02:38]}  O-O {[%clk 0:02:28]} 10. Ngf3 {[%clk 0:02:37]}  c5 {[%clk 0:02:22]} 11. O-O {[%clk 0:02:29]}  a5 {[%clk 0:02:15]} 12. a4 {[%clk 0:02:10]}  cxd4 {[%clk 0:02:13]} 13. Nxd4 {[%clk 0:02:06]}  Bc5 {[%clk 0:02:11]} 14. Be3 {[%clk 0:01:41]}  Qe7 {[%clk 0:01:55]} 15. c3 {[%clk 0:00:52]}  Nbd5 {[%clk 0:01:42]} 16. Bd2 {[%clk 0:00:48]}  Rd8 {[%clk 0:01:39]} 17. Qe2 {[%clk 0:00:48]}  Nd7 {[%clk 0:01:26]} 18. Nd3 {[%clk 0:00:41]}  Bd6 {[%clk 0:01:11]} 19. Bxd5 {[%clk 0:00:38]}  exd5 {[%clk 0:01:11]} 20. Qxe7 {[%clk 0:00:39]}  Bxe7 {[%clk 0:01:11]} 21. Rfe1 {[%clk 0:00:32]}  Bf8 {[%clk 0:01:11]} 22. Bf4 {[%clk 0:00:29]}  Nc5 {[%clk 0:01:06]} 23. Nxc5 {[%clk 0:00:19]}  Bxc5 {[%clk 0:01:07]} 24. Bc7 {[%clk 0:00:19]}  Rf8 {[%clk 0:01:02]} 25. Nb5 {[%clk 0:00:20]}  Be6 {[%clk 0:00:55]} 26. Bd6 {[%clk 0:00:20]}  Rfc8 {[%clk 0:00:49]} 27. Bxc5 {[%clk 0:00:20]}  Rxc5 {[%clk 0:00:50]} 28. Nd4 {[%clk 0:00:21]}  Ra6 {[%clk 0:00:35]} 29. Re2 {[%clk 0:00:18]}  h6 {[%clk 0:00:30]} 30. Rae1 {[%clk 0:00:17]}  Rb6 {[%clk 0:00:30]} 31. f3 {[%clk 0:00:13]}  Rc4 {[%clk 0:00:30]} 32. Ra1 {[%clk 0:00:08]}  Bd7 {[%clk 0:00:28]} 33. Re7 {[%clk 0:00:04]}  Bxa4 {[%clk 0:00:27]} 34. g3 {[%clk 0:00:01]}  Rxb2 {[%clk 0:00:26]} 0-1


[Site "https://www.chess.com"]

[Event "Titled Tuesday Blitz September 27 Early 2022"]
[White "Shuvalov, Evgenij"]
[Black "Zhao, Jun"]
[WhiteFideId "4187237"]
[BlackFideId "8602522"]
[WhiteElo "2033"]
[BlackElo "2547"]
[Result "1-0"]
[Round "04"]
[TimeControl "180+1"]
[Date "2022.09.27"]
[WhiteClock "0:00:44"]
[BlackClock "0:00:24"]

1. d4 {[%clk 0:03:00]}  d5 {[%clk 0:02:58]} 2. c4 {[%clk 0:02:59]}  e6 {[%clk 0:02:58]} 3. Nc3 {[%clk 0:02:59]}  Nf6 {[%clk 0:02:52]} 4. cxd5 {[%clk 0:02:57]}  exd5 {[%clk 0:02:52]} 5. Bg5 {[%clk 0:02:57]}  c6 {[%clk 0:02:51]} 6. e3 {[%clk 0:02:52]}  h6 {[%clk 0:02:52]} 7. Bh4 {[%clk 0:02:50]}  Be7 {[%clk 0:02:52]} 8. Bd3 {[%clk 0:02:50]}  O-O {[%clk 0:02:51]} 9. h3 {[%clk 0:02:46]}  Nbd7 {[%clk 0:02:48]} 10. Nf3 {[%clk 0:02:46]}  Ne4 {[%clk 0:02:45]} 11. Bxe7 {[%clk 0:02:43]}  Qxe7 {[%clk 0:02:44]} 12. O-O {[%clk 0:02:42]}  Nd6 {[%clk 0:02:39]} 13. Qc2 {[%clk 0:02:40]}  Nf6 {[%clk 0:02:39]} 14. Ne5 {[%clk 0:02:39]}  Re8 {[%clk 0:02:36]} 15. b4 {[%clk 0:02:37]}  Nd7 {[%clk 0:02:32]} 16. f4 {[%clk 0:02:29]}  Nb6 {[%clk 0:02:32]} 17. Rab1 {[%clk 0:02:23]}  Bd7 {[%clk 0:02:27]} 18. a4 {[%clk 0:02:15]}  a6 {[%clk 0:02:09]} 19. Rf3 {[%clk 0:02:14]}  Rad8 {[%clk 0:01:56]} 20. a5 {[%clk 0:02:04]}  Na8 {[%clk 0:01:56]} 21. Na4 {[%clk 0:02:01]}  Nc7 {[%clk 0:01:54]} 22. Nc5 {[%clk 0:02:01]}  Bc8 {[%clk 0:01:54]} 23. Kh2 {[%clk 0:01:52]}  Ne6 {[%clk 0:01:40]} 24. g4 {[%clk 0:01:34]}  Nxc5 {[%clk 0:01:38]} 25. bxc5 {[%clk 0:01:32]}  Ne4 {[%clk 0:01:36]} 26. Bxe4 {[%clk 0:01:25]}  dxe4 {[%clk 0:01:37]} 27. Rg3 {[%clk 0:01:23]}  Rd5 {[%clk 0:01:14]} 28. Rbg1 {[%clk 0:01:15]}  Qh4 {[%clk 0:00:43]} 29. Qxe4 {[%clk 0:00:49]}  f6 {[%clk 0:00:42]} 30. Qg6 {[%clk 0:00:45]}  Re7 {[%clk 0:00:24]} 31. Nf3 {[%clk 0:00:44]} 1-0


[Site "https://www.chess.com"]

[Event "Titled Tuesday Blitz September 27 Early 2022"]
[White "Silva, Kevin Ranidu"]
[Black "Bartel, Michal"]
[WhiteFideId "9935258"]
[BlackFideId "1119257"]
[WhiteElo "1626"]
[BlackElo "2274"]
[Result "0-1"]
[Round "04"]
[TimeControl "180+1"]
[Date "2022.09.27"]
[WhiteClock "0:01:26"]
[BlackClock "0:02:01"]

1. e4 {[%clk 0:03:00]}  e5 {[%clk 0:02:51]} 2. Nf3 {[%clk 0:03:01]}  Nc6 {[%clk 0:02:51]} 3. Bc4 {[%clk 0:03:01]}  Be7 {[%clk 0:02:50]} 4. O-O {[%clk 0:03:01]}  Nf6 {[%clk 0:02:50]} 5. d3 {[%clk 0:02:59]}  O-O {[%clk 0:02:50]} 6. a3 {[%clk 0:02:59]}  d6 {[%clk 0:02:50]} 7. Nc3 {[%clk 0:02:55]}  h6 {[%clk 0:02:50]} 8. h3 {[%clk 0:02:55]}  Be6 {[%clk 0:02:49]} 9. Bxe6 {[%clk 0:02:55]}  fxe6 {[%clk 0:02:50]} 10. d4 {[%clk 0:02:56]}  exd4 {[%clk 0:02:50]} 11. Nxd4 {[%clk 0:02:57]}  Nxd4 {[%clk 0:02:50]} 12. Qxd4 {[%clk 0:02:58]}  e5 {[%clk 0:02:50]} 13. Qd3 {[%clk 0:02:58]}  Qe8 {[%clk 0:02:50]} 14. f4 {[%clk 0:02:53]}  exf4 {[%clk 0:02:50]} 15. Bxf4 {[%clk 0:02:54]}  Kh8 {[%clk 0:02:50]} 16. Rae1 {[%clk 0:02:49]}  Nh5 {[%clk 0:02:47]} 17. Bh2 {[%clk 0:02:49]}  Bf6 {[%clk 0:02:45]} 18. Nd5 {[%clk 0:02:43]}  Rc8 {[%clk 0:02:43]} 19. g4 {[%clk 0:02:27]}  Bh4 {[%clk 0:02:33]} 20. gxh5 {[%clk 0:02:14]}  Bxe1 {[%clk 0:02:32]} 21. Rxe1 {[%clk 0:02:14]}  Qxh5 {[%clk 0:02:30]} 22. Qe2 {[%clk 0:02:14]}  Qxh3 {[%clk 0:02:26]} 23. Qg2 {[%clk 0:02:05]}  Qh4 {[%clk 0:02:22]} 24. Bg3 {[%clk 0:02:01]}  Qg5 {[%clk 0:02:20]} 25. Bf2 {[%clk 0:01:52]}  Qd2 {[%clk 0:02:16]} 26. Ne7 {[%clk 0:01:47]}  Rxf2 {[%clk 0:02:04]} 27. Ng6+ {[%clk 0:01:32]}  Kh7 {[%clk 0:02:03]} 28. Qxf2 {[%clk 0:01:27]}  Qxf2+ {[%clk 0:02:02]} 29. Kxf2 {[%clk 0:01:27]}  Kxg6 {[%clk 0:02:03]} 30. Ke3 {[%clk 0:01:26]}  Kf6 {[%clk 0:02:01]} 0-1


[Site "https://www.chess.com"]